bitfinex-derivatives/quotes_BTCF0:USTF0_20241122
["timestamp","ask_amount","ask_price","bid_price","bid_amount"]
[1732286842271,0.05122,97554.0,97550.0,0.10004]
[1732286842563,0.051217,97559.0,97550.0,0.10004]
[1732286842766,0.3608,97562.0,97550.0,0.10004]
[1732286842959,0.051217,97560.0,97558.0,4e-05]
[1732286843162,0.051221,97552.0,97539.0,0.3608]
[1732286843359,0.3608,97543.0,97528.0,0.051233]
[1732286843562,0.3608,97534.0,97528.0,0.191233]
[1732286843767,0.3608,97534.0,97528.0,0.14]
[1732286843969,0.3608,97534.0,97529.0,0.051233]
[1732286844169,0.3608,97534.0,97529.0,0.15]
[1732286844568,0.3608,97534.0,97529.0,0.02]
[1732286844569,0.051232,97530.0,97529.0,0.02]
[1732286844869,0.051239,97517.0,97506.0,0.0024]
[1732286845170,0.051239,97517.0,97493.0,0.00244]
[1732286845171,0.051249,97499.0,97493.0,0.00244]
[1732286845377,1.02,97498.0,97493.0,0.02004]
[1732286845670,0.051251,97494.0,97493.0,4e-05]
[1732286846072,0.412051,97495.0,97493.0,4e-05]
[1732286846368,4e-05,97494.0,97493.0,4e-05]
[1732286846571,4e-05,97494.0,97473.0,0.00153831]
[1732286846572,0.30776,97494.0,97473.0,0.00153831]
[1732286846766,0.3608,97478.0,97473.0,0.00153831]
[1732286846968,4e-05,97474.0,97473.0,0.00153831]
[1732286847272,1.02004,97474.0,97473.0,0.00159665]
[1732286847463,4e-05,97474.0,97473.0,0.00159665]
[1732286848373,4e-05,97474.0,97473.0,0.13153831]
[1732286850261,4e-05,97474.0,97473.0,0.13159665]
[1732286850470,4e-05,97474.0,97473.0,0.13153831]
[1732286850974,4e-05,97474.0,97473.0,0.43929831]
[1732286851573,0.0024,97498.0,97497.0,0.05125]
[1732286851872,0.4104,97516.0,97497.0,4e-05]
[1732286851873,0.3608,97516.0,97497.0,4e-05]
[1732286852075,0.051249,97499.0,97497.0,0.14004]
[1732286852371,0.051249,97499.0,97495.0,0.14084]
[1732286852372,0.051249,97499.0,97498.0,5.834e-05]
[1732286852674,0.051249,97499.0,97498.0,0.02005834]
[1732286852883,0.412049,97499.0,97498.0,5.834e-05]
[1732286853677,0.412049,97499.0,97498.0,3.4e-07]
[1732286854172,0.3608,97499.0,97498.0,3.4e-07]
[1732286854364,0.05102842,97517.0,97498.0,0.01000034]
[1732286854564,0.412044,97509.0,97498.0,0.01000034]
[1732286854769,0.051244,97508.0,97500.0,0.051248]
[1732286854979,0.051244,97508.0,97500.0,0.201248]
[1732286855170,0.051247,97502.0,97500.0,0.15]
[1732286855370,0.3608,97520.0,97500.0,0.15]
[1732286855566,0.14028,97524.0,97500.0,0.15]
[1732286855567,0.051243,97510.0,97500.0,0.15]
[1732286855781,0.412043,97510.0,97500.0,0.15]
[1732286855973,0.051243,97510.0,97500.0,0.15]
[1732286856180,0.051243,97510.0,97504.0,0.051246]
[1732286856371,0.051244,97508.0,97504.0,0.15]
[1732286856571,0.3608,97511.0,97504.0,0.15]
[1732286856781,0.0024,97528.0,97505.0,0.66848]
[1732286856980,0.3608,97530.0,97525.0,0.051235]
[1732286857177,0.051235,97526.0,97525.0,0.13]
[1732286857374,0.051238,97519.0,97513.0,0.14028]
[1732286857580,0.3608,97530.0,97525.0,0.051235]
[1732286857777,0.3608,97530.0,97529.0,0.051233]
[1732286857981,0.0024,97538.0,97529.0,0.181273]
[1732286858174,4e-05,97540.0,97529.0,0.13004]
[1732286858375,4e-05,97540.0,97539.0,0.3608]
[1732286858677,4e-05,97540.0,97539.0,0.51088]
[1732286859077,4e-05,97540.0,97539.0,0.81844]
[1732286859275,0.0024,97562.0,97554.0,0.05122]
[1732286859476,0.0024,97580.0,97561.0,0.3608]
[1732286859778,0.051203,97587.0,97579.0,0.36091999]
[1732286860301,0.00153788,97594.0,97586.0,0.00011999]
[1732286860671,0.00153788,97594.0,97579.0,0.3608]
[1732286860982,0.0512,97593.0,97587.0,0.3608]
[1732286861182,0.00153788,97594.0,97590.0,0.051201]
[1732286861371,0.00153788,97594.0,97592.0,0.0512]
[1732286861573,0.00153788,97594.0,97593.0,0.3074]
[1732286861977,0.1,97600.0,97599.0,0.051196]
[1732286862177,0.0024,97622.0,97599.0,0.551996]
[1732286862382,0.0024,97635.0,97633.0,0.051178]
[1732286862675,9.352e-05,97638.0,97637.0,0.051176]
[1732286862980,9.352e-05,97638.0,97637.0,0.00011999]
[1732286863178,0.41206952,97638.0,97637.0,9.9e-07]
[1732286863377,0.051188,97615.0,97613.0,0.00153644]
[1732286863574,0.051188,97615.0,97596.0,0.501]
[1732286863575,0.3608,97615.0,97614.0,0.00319841]
[1732286863781,0.66812,97615.0,97591.0,0.0024]
[1732286863978,0.3608,97597.0,97582.0,0.3632]
[1732286864182,0.00011999,97592.0,97582.0,0.3632]
[1732286864879,0.00011999,97592.0,97590.0,0.3608]
[1732286865073,0.00011999,97592.0,97582.0,0.3632]
[1732286865273,0.051201,97590.0,97582.0,0.3632]
[1732286865475,0.00011999,97583.0,97582.0,0.3632]
[1732286865781,0.00011999,97583.0,97582.0,0.3608]
[1732286865978,0.00011999,97583.0,97560.0,0.23280848]
[1732286866197,0.00011999,97583.0,97559.0,0.0024]
[1732286866198,0.051217,97560.0,97559.0,0.0024]
[1732286866493,0.051217,97560.0,97537.0,0.3608]
[1732286866494,0.051219,97556.0,97545.0,0.3608]
[1732286866689,0.00011999,97560.0,97545.0,0.4508]
[1732286866880,0.00011999,97546.0,97545.0,0.7508]
[1732286867078,0.0024,97568.0,97559.0,4e-05]
[1732286867386,0.056002,97589.0,97567.0,4e-05]
[1732286867679,0.056002,97589.0,97584.0,0.3608]
[1732286867680,0.0048,97589.0,97584.0,0.3608]
[1732286867883,0.00011999,97592.0,97584.0,0.4308]
[1732286868090,0.00011999,97592.0,97588.0,4e-05]
[1732286868274,0.00011999,97592.0,97591.0,4e-05]
[1732286869485,0.04131999,97592.0,97591.0,4e-05]
[1732286870000,0.70951999,97592.0,97565.0,0.3608]
[1732286870193,0.3608,97584.0,97568.0,0.1]
[1732286870377,0.40211999,97592.0,97574.0,0.3608]
[1732286870577,0.40211999,97592.0,97574.0,0.4908]
[1732286870807,0.40211999,97592.0,97591.0,4e-05]
[1732286871179,0.45331999,97592.0,97591.0,4e-05]
[1732286871380,0.70951999,97592.0,97568.0,0.0024]
[1732286871583,0.051203,97587.0,97563.0,0.051215]
[1732286871790,0.051208,97577.0,97564.0,0.14153692]
[1732286871979,0.3608,97584.0,97564.0,0.14153692]
[1732286872179,0.3608,97572.0,97564.0,0.00153692]
[1732286872790,0.3608,97584.0,97564.0,0.00153692]
[1732286873087,0.3608,97584.0,97572.0,0.05121]
[1732286873287,0.3608,97584.0,97572.0,0.02]
[1732286873877,0.3608,97584.0,97572.0,0.14]
[1732286874185,0.41201,97573.0,97572.0,0.03]
[1732286874379,0.05122,97553.0,97552.0,0.06]
[1732286874579,0.05122,97553.0,97500.0,0.10959699]
[1732286874580,0.7216,97553.0,97511.0,0.366]
[1732286874782,0.7216,97553.0,97511.0,0.07]
[1732286874783,0.051242,97513.0,97511.0,0.07]
[1732286875084,0.3608,97515.0,97511.0,0.07]
[1732286875589,0.3608,97515.0,97514.0,4e-05]
[1732286878689,0.051248,97501.0,97500.0,0.1]
[1732286878890,0.412048,97501.0,97500.0,0.1]
[1732286879085,0.412168,97501.0,97500.0,0.1]
[1732286879997,0.558728,97501.0,97500.0,0.1]
[1732286880490,0.412168,97501.0,97500.0,0.1]
[1732286880687,0.558728,97501.0,97500.0,0.1]
[1732286881283,0.051368,97501.0,97500.0,0.1]
[1732286881483,0.00012,97501.0,97500.0,0.1]
[1732286882581,0.3078,97501.0,97470.0,0.3608]
[1732286882784,0.051253,97491.0,97470.0,0.4908]
[1732286882994,0.00012,97471.0,97470.0,0.4908]
[1732286883287,0.00012,97471.0,97470.0,0.7908]
[1732286883594,0.00012,97471.0,97470.0,0.7986]
[1732286884691,0.051267,97464.0,97461.0,0.00056]
[1732286884883,0.051267,97464.0,97452.0,0.3608]
[1732286885083,0.051387,97464.0,97443.0,0.051278]
[1732286885390,0.051387,97464.0,97447.0,0.3608]
[1732286885888,0.00012,97464.0,97463.0,0.13153898]
[1732286886392,0.00012,97464.0,97463.0,0.02153898]
[1732286886703,0.00012,97464.0,97463.0,0.00153898]
[1732286887286,0.23280848,97450.0,97433.0,0.051283]
[1732286887487,0.3608,97446.0,97433.0,0.14]
[1732286887696,0.00012,97434.0,97433.0,0.14]
[1732286888293,0.0096,97458.0,97433.0,0.14]
[1732286888294,0.0096,97458.0,97433.0,0.74792]
[1732286888493,0.3608,97476.0,97455.0,0.3608]
[1732286888494,0.0096,97470.0,97455.0,0.3608]
[1732286888695,0.412061,97476.0,97465.0,0.3608]
[1732286888696,0.3608,97476.0,97465.0,0.3608]
[1732286888901,0.3608,97476.0,97471.0,0.051263]
[1732286889098,0.3608,97476.0,97475.0,4e-05]
[1732286889288,0.3608,97476.0,97475.0,0.13004]
[1732286889603,0.00153964,97486.0,97475.0,0.4378]
[1732286889788,0.00153964,97486.0,97481.0,0.3608]
[1732286889989,0.00153964,97486.0,97485.0,0.051256]
[1732286890301,0.05279564,97486.0,97485.0,0.13]
[1732286890494,0.05279564,97486.0,97475.0,4e-05]
[1732286890495,0.051261,97476.0,97475.0,4e-05]
[1732286890797,4e-05,97476.0,97475.0,0.05004]
[1732286892192,4e-05,97476.0,97475.0,0.3578]
[1732286892400,4e-05,97476.0,97475.0,0.5044]
[1732286892697,0.00153964,97486.0,97485.0,0.051256]
[1732286892896,0.412047,97503.0,97499.0,0.051248]
[1732286893093,0.36148,97503.0,97499.0,0.15]
[1732286893294,0.3608,97503.0,97502.0,0.051247]
[1732286893491,0.3608,97503.0,97502.0,0.201247]
[1732286893695,0.3608,97503.0,97502.0,0.15320272]
[1732286893905,0.051246,97504.0,97502.0,0.15]
[1732286894093,0.051256,97485.0,97476.0,0.1466]
[1732286894304,0.3608,97493.0,97477.0,0.00320289]
[1732286894698,0.051253,97491.0,97478.0,0.00320289]
[1732286894897,0.051253,97491.0,97479.0,0.00320289]
[1732286895093,0.00068,97493.0,97490.0,0.3608]
[1732286895302,0.00068,97493.0,97492.0,0.051252]
[1732286895493,0.0024,97513.0,97505.0,0.051245]
[1732286895798,0.051243,97510.0,97508.0,0.3608]
[1732286895997,0.051243,97510.0,97508.0,0.5008]
[1732286896204,0.3608,97522.0,97508.0,0.5008]
[1732286896205,0.05124,97517.0,97512.0,0.051242]
[1732286896401,0.3608,97522.0,97512.0,0.141242]
[1732286896700,0.051241,97513.0,97512.0,0.09]
[1732286896895,0.051241,97513.0,97512.0,0.09320238]
[1732286897092,0.051241,97513.0,97512.0,0.00320238]
[1732286897093,0.412041,97513.0,97512.0,0.00320238]
[1732286897293,0.051253,97491.0,97490.0,0.3608]
[1732286897598,0.051242,97512.0,97475.0,4e-05]
[1732286897599,0.14912,97496.0,97475.0,4e-05]
[1732286897901,0.05126,97478.0,97476.0,0.0115388]
[1732286898199,0.32877464,97490.0,97476.0,0.0015388]
[1732286898500,0.0441,97489.0,97476.0,0.1215388]
[1732286899100,0.051257,97484.0,97476.0,0.1215388]
[1732286899297,0.0441,97489.0,97476.0,0.1215388]
[1732286899298,0.0441,97489.0,97476.0,0.12]
[1732286899506,0.051261,97476.0,97475.0,4e-05]
[1732286900003,0.051301,97476.0,97475.0,4e-05]
[1732286901302,0.051301,97476.0,97456.0,0.00153881]
[1732286901303,0.3078,97476.0,97456.0,0.00153881]
[1732286901498,0.3608,97467.0,97456.0,0.12153881]
[1732286901696,4e-05,97457.0,97456.0,0.00153881]
[1732286901999,4e-05,97457.0,97456.0,0.01153881]
[1732286903013,4e-05,97457.0,97450.0,0.3608]
[1732286903302,0.3608,97467.0,97451.0,0.00961241]
[1732286903303,0.051269,97460.0,97451.0,0.00961241]
[1732286903500,0.36132001,97467.0,97452.0,0.00961241]
[1732286903697,0.00052001,97467.0,97460.0,0.3608]
[1732286903895,0.14916,97470.0,97461.0,0.00961241]
[1732286904099,0.412066,97467.0,97462.0,0.00961241]
[1732286904298,0.3608,97467.0,97459.0,4e-05]
[1732286904497,0.051266,97466.0,97459.0,4e-05]
[1732286904699,0.051269,97460.0,97459.0,4e-05]
[1732286904903,0.3608,97467.0,97459.0,0.00965251]
[1732286905098,0.051269,97461.0,97460.0,0.00961251]
[1732286905896,0.14916,97470.0,97460.0,0.00961251]
[1732286906216,0.41206,97478.0,97469.0,4e-05]
[1732286906504,0.41206,97478.0,97472.0,0.051263]
[1732286906505,0.3608,97478.0,97472.0,0.051263]
[1732286906706,0.3608,97478.0,97459.0,0.36084]
[1732286906707,0.3608,97478.0,97477.0,4e-05]
[1732286906908,0.3608,97478.0,97477.0,0.00965251]
[1732286907498,0.32876193,97478.0,97477.0,0.00965251]
[1732286907710,0.63652193,97478.0,97477.0,0.00965251]
[1732286908008,0.051269,97461.0,97459.0,0.36084]
[1732286908197,0.051269,97461.0,97459.0,0.38084]
[1732286908401,4e-05,97460.0,97459.0,0.38084]
[1732286909095,4e-05,97460.0,97459.0,0.49084]
[1732286910302,4e-05,97460.0,97459.0,0.54531391]
[1732286910502,0.0055,97500.0,97480.0,0.051259]
[1732286910712,0.15147077,97500.0,97480.0,0.49400391]
[1732286910902,0.15147077,97500.0,97481.0,0.00320391]
[1732286910903,0.051258,97482.0,97481.0,0.00320391]
[1732286911104,0.3608,97486.0,97461.0,0.03]
[1732286911408,0.051269,97461.0,97460.0,0.00153904]
[1732286911809,0.051309,97461.0,97460.0,0.00153904]
[1732286912200,4e-05,97461.0,97460.0,0.06153904]
[1732286912599,0.051309,97461.0,97460.0,0.06153904]
[1732286913005,4e-05,97461.0,97460.0,0.06]
[1732286913609,0.051309,97461.0,97460.0,0.06]
[1732286914111,4e-05,97461.0,97460.0,0.06]
[1732286914908,4e-05,97461.0,97460.0,0.111269]
[1732286915410,0.051262,97475.0,97467.0,0.051266]
[1732286915616,0.3598,97487.0,97468.0,0.3659259]
[1732286915908,0.0024,97495.0,97486.0,0.3608]
[1732286916115,0.0024,97512.0,97494.0,0.3608]
[1732286916315,0.051236,97523.0,97511.0,0.3608]
[1732286916503,0.051238,97520.0,97519.0,0.3608]
[1732286917006,0.051238,97520.0,97511.0,0.36084001]
[1732286917007,0.051241,97513.0,97511.0,0.36084001]
[1732286917200,0.051241,97513.0,97512.0,0.00512333]
[1732286917506,0.3608,97519.0,97512.0,0.00512333]
[1732286917711,0.05125,97497.0,97493.0,0.3608]
[1732286918006,0.051247,97503.0,97494.0,0.0096086]
[1732286918211,0.05125,97497.0,97495.0,0.0096086]
[1732286918512,0.14252,97509.0,97496.0,0.0096086]
[1732286918710,0.3608,97510.0,97496.0,0.0096086]
[1732286918711,0.051245,97506.0,97497.0,0.0096086]
[1732286918915,0.3608,97519.0,97506.0,0.051245]
[1732286919107,0.3608,97519.0,97507.0,0.0096086]
[1732286919306,0.3608,97531.0,97507.0,0.0096086]
[1732286919307,0.3608,97531.0,97518.0,4e-05]
[1732286919508,0.051236,97524.0,97519.0,0.0096086]
[1732286919705,0.051236,97524.0,97520.0,0.0096086]
[1732286920010,0.3608,97531.0,97521.0,0.0096086]
[1732286920212,0.0446,97541.0,97524.0,0.3608]
[1732286920417,0.00153861,97546.0,97532.0,0.3608]
[1732286920713,0.05123,97534.0,97533.0,0.0096086]
[1732286921216,0.3608,97544.0,97533.0,0.0096086]
[1732286921402,0.05123,97536.0,97534.0,0.0096086]
[1732286921609,0.3608,97544.0,97535.0,0.0096086]
[1732286921912,0.00153861,97546.0,97543.0,0.3608]
[1732286922114,0.0024,97566.0,97544.0,0.0096086]
[1732286922314,0.051215,97563.0,97552.0,0.412021]
[1732286922615,0.00968764,97569.0,97552.0,0.3804086]
[1732286922616,0.051218,97558.0,97552.0,0.3804086]
[1732286922813,0.051215,97563.0,97552.0,0.5204086]
[1732286923014,8.764e-05,97569.0,97552.0,0.4204086]
[1732286923211,8.764e-05,97569.0,97552.0,0.06280946]
[1732286923410,0.051217,97560.0,97552.0,0.06280946]
[1732286923609,8.764e-05,97569.0,97552.0,0.06280948]
[1732286923914,8.764e-05,97569.0,97552.0,0.11403048]
[1732286924117,8.764e-05,97569.0,97552.0,0.41194188]
[1732286924705,0.0024,97574.0,97552.0,0.67032948]
[1732286924920,0.0024,97582.0,97580.0,0.051206]
[1732286925106,0.0024,97582.0,97573.0,0.3608]
[1732286925107,0.051205,97582.0,97581.0,0.00320088]
[1732286925708,0.358645,97582.0,97573.0,0.0247205]
[1732286925914,0.051209,97574.0,97573.0,0.0247205]
[1732286926106,4e-05,97574.0,97573.0,0.0247205]
[1732286926619,4e-05,97574.0,97573.0,0.1447205]
[1732286926922,4e-05,97574.0,97573.0,0.0247205]
[1732286927807,4e-05,97574.0,97573.0,0.1547205]
[1732286928019,4e-05,97574.0,97573.0,0.0247205]
[1732286928412,4e-05,97574.0,97573.0,0.3834105]
[1732286928608,4e-05,97574.0,97573.0,0.5234105]
[1732286928807,0.00153789,97590.0,97588.0,0.051202]
[1732286929013,0.00153789,97590.0,97589.0,0.3608]
[1732286929208,0.00153789,97590.0,97589.0,0.13011999]
[1732286929412,0.05273889,97590.0,97589.0,0.00011999]
[1732286931115,0.00153789,97590.0,97589.0,0.00011999]
[1732286931315,0.05273889,97590.0,97589.0,0.00011999]
[1732286931619,0.00153789,97590.0,97589.0,0.00011999]
[1732286932124,0.05273889,97590.0,97589.0,0.02011999]
[1732286932420,0.05273889,97590.0,97589.0,0.00011999]
[1732286933020,0.05273889,97590.0,97589.0,0.05011999]
[1732286933523,0.051207,97578.0,97577.0,0.3608]
[1732286933824,0.051207,97578.0,97577.0,0.13]
[1732286933825,4e-05,97578.0,97577.0,0.13]
[1732286934024,0.051209,97574.0,97573.0,0.0247205]
[1732286934318,0.051249,97574.0,97573.0,0.0547205]
[1732286934711,4e-05,97574.0,97573.0,0.0247205]
[1732286934913,4e-05,97574.0,97573.0,0.4822005]
[1732286936423,4e-05,97574.0,97573.0,0.1747205]
[1732286937020,0.15148,97574.0,97553.0,0.03]
[1732286937215,0.051215,97565.0,97556.0,0.051219]
[1732286937417,0.0429,97573.0,97557.0,0.3608]
[1732286937611,0.051212,97570.0,97564.0,0.051214]
[1732286937821,0.051212,97570.0,97564.0,0.201214]
[1732286938026,4e-05,97574.0,97568.0,0.051212]
[1732286938338,0.051212,97570.0,97568.0,0.13]
[1732286940123,4e-05,97574.0,97568.0,0.06]
[1732286940423,0.051249,97574.0,97573.0,4e-05]
[1732286941621,0.051249,97574.0,97573.0,0.36004]
[1732286942120,0.051249,97574.0,97573.0,4e-05]
[1732286942424,0.051249,97574.0,97573.0,0.01004]
[1732286942619,0.00393789,97590.0,97573.0,1.07953]
[1732286942822,0.00153789,97590.0,97582.0,0.3608]
[1732286943022,0.20417889,97590.0,97589.0,4e-05]
[1732286943222,0.25579964,97590.0,97589.0,4e-05]
[1732286943423,0.00153789,97590.0,97589.0,4e-05]
[1732286943726,0.00153789,97590.0,97589.0,0.64744]
[1732286944024,0.1,97600.0,97599.0,0.051196]
[1732286944230,0.041,97622.0,97599.0,0.7108]
[1732286944231,0.0024,97618.0,97599.0,0.7108]
[1732286944429,0.041,97622.0,97617.0,0.3608]
[1732286944736,0.1232773,97638.0,97637.0,0.051176]
[1732286945031,0.05089817,97643.0,97642.0,0.051174]
[1732286945224,0.051168,97653.0,97642.0,0.391174]
[1732286945425,0.05273734,97644.0,97642.0,0.05004]
[1732286945626,0.05273734,97644.0,97634.0,0.411977]
[1732286945627,0.051173,97644.0,97643.0,4e-05]
[1732286945929,0.051173,97644.0,97621.0,4e-05]
[1732286945930,0.051184,97622.0,97621.0,4e-05]
[1732286946226,0.0759045,97622.0,97621.0,4e-05]
[1732286946620,0.2273045,97622.0,97601.0,0.36442724]
[1732286946842,0.051189,97613.0,97595.0,0.00153672]
[1732286947126,0.0247605,97599.0,97595.0,0.00153672]
[1732286947335,0.051198,97596.0,97595.0,0.00153672]
[1732286947532,0.051198,97596.0,97589.0,0.00959469]
[1732286947533,0.051201,97590.0,97589.0,0.00959469]
[1732286947829,0.0247605,97590.0,97589.0,0.00959469]
[1732286948125,0.051203,97586.0,97585.0,0.00959469]
[1732286948328,0.05121,97572.0,97571.0,0.3608]
[1732286948527,0.1514,97577.0,97571.0,0.3608]
[1732286948724,0.0247605,97572.0,97571.0,0.3608]
[1732286949331,0.0247605,97572.0,97571.0,0.7508]
[1732286949627,0.0247605,97572.0,97571.0,0.3608]
[1732286949822,0.0759705,97572.0,97571.0,0.3608]
[1732286950020,0.0247605,97572.0,97571.0,0.37039469]
[1732286951528,0.0247605,97572.0,97571.0,0.76039469]
[1732286952233,0.15118857,97590.0,97571.0,0.76039469]
[1732286952428,0.15118857,97590.0,97572.0,0.00959469]
[1732286952627,0.00064,97593.0,97583.0,0.3608]
[1732286952832,0.0441,97601.0,97583.0,0.6708]
[1732286953135,0.051204,97585.0,97584.0,0.00959469]
[1732286953343,0.3608,97590.0,97550.0,0.36596488]
[1732286953344,0.0914673,97586.0,97550.0,0.00673764]
[1732286953634,0.051261,97551.0,97550.0,0.00153764]
[1732286953821,0.051261,97551.0,97538.0,0.0052]
[1732286953822,4e-05,97551.0,97530.0,0.3608]
[1732286954027,4e-05,97551.0,97508.0,0.42427404]
[1732286954028,0.051226,97542.0,97519.0,0.3608]
[1732286954327,0.1514,97542.0,97528.0,0.3608]
[1732286954627,0.1514,97548.0,97528.0,0.5408]
[1732286955426,0.051224,97547.0,97528.0,0.7508]
[1732286955628,0.1514,97548.0,97528.0,0.5208]
[1732286955629,0.051227,97541.0,97528.0,0.5208]
[1732286955827,0.1514,97548.0,97528.0,0.5208]
[1732286956034,0.051233,97530.0,97528.0,0.3608]
[1732286956224,0.3608,97540.0,97528.0,0.3608]
[1732286956425,0.051233,97530.0,97528.0,0.3608]
[1732286957232,0.0418,97539.0,97510.0,0.3608]
[1732286957442,0.051238,97519.0,97510.0,0.7508]
[1732286957730,0.59385536,97530.0,97501.0,0.00153842]
[1732286957933,0.59385536,97530.0,97501.0,0.30153842]
[1732286958130,4e-05,97502.0,97501.0,0.30153842]
[1732286958726,4e-05,97502.0,97501.0,0.30474085]
[1732286959528,4e-05,97502.0,97501.0,0.30320243]
[1732286959928,4e-05,97502.0,97501.0,0.30320252]
[1732286960129,4e-05,97502.0,97501.0,0.00320252]
[1732286960335,4e-05,97502.0,97501.0,0.09320252]
[1732286960846,4e-05,97502.0,97501.0,0.09]
[1732286962537,0.0024,97520.0,97512.0,0.051242]
[1732286962734,0.051235,97526.0,97514.0,0.3608]
[1732286962937,0.051234,97527.0,97523.0,0.3608]
[1732286963130,0.0418,97539.0,97523.0,0.3608]
[1732286963431,0.0024,97545.0,97538.0,4e-05]
[1732286963432,0.051225,97544.0,97538.0,4e-05]
[1732286963637,0.051228,97539.0,97538.0,4e-05]
[1732286963825,0.051234,97527.0,97526.0,4e-05]
[1732286964029,0.0024,97545.0,97526.0,4e-05]
[1732286964228,0.3608,97554.0,97526.0,4e-05]
[1732286964229,0.00068,97542.0,97526.0,0.39004]
[1732286964434,0.051274,97527.0,97526.0,0.39004]
[1732286964637,0.051274,97527.0,97526.0,4e-05]
[1732286966151,0.051274,97527.0,97489.0,0.051254]
[1732286966152,0.051248,97501.0,97489.0,0.3608]
[1732286966503,0.051248,97501.0,97480.0,0.3608]
[1732286966504,0.14944001,97501.0,97480.0,0.3608]
[1732286966710,0.23305536,97499.0,97480.0,0.7508]
[1732286966836,0.14944001,97501.0,97489.0,0.3608]
[1732286966837,0.1494,97501.0,97489.0,0.3608]
[1732286967064,0.00064,97504.0,97500.0,0.3608]
[1732286967238,0.00064,97504.0,97503.0,0.3608]
[1732286967543,0.23305536,97513.0,97500.0,0.39004]
[1732286967739,0.051242,97512.0,97500.0,0.39004]
[1732286968039,0.23305536,97513.0,97500.0,0.39004]
[1732286968040,0.051245,97507.0,97500.0,0.39004]
[1732286968235,0.3608,97509.0,97500.0,0.39004]
[1732286968436,0.412048,97501.0,97500.0,4e-05]
[1732286969028,0.3608,97501.0,97500.0,0.39004]
[1732286969237,0.14944,97520.0,97500.0,0.39004]
[1732286969539,0.23305536,97510.0,97500.0,0.39004]
[1732286969738,0.051247,97502.0,97500.0,0.39004]
[1732286969935,0.051247,97502.0,97500.0,4e-05]
[1732286971646,0.051245,97506.0,97500.0,4e-05]
[1732286971943,0.051246,97505.0,97500.0,0.02004]
[1732286972343,0.051248,97501.0,97500.0,0.02004]
[1732286972543,0.051245,97506.0,97500.0,0.02239479]
[1732286972739,0.051247,97502.0,97500.0,0.02239479]
[1732286973141,0.66848,97501.0,97500.0,0.00239479]
[1732286973453,0.051255,97488.0,97487.0,0.3608]
[1732286973839,0.051255,97488.0,97487.0,0.36291859]
[1732286974741,0.66860001,97488.0,97466.0,0.3608]
[1732286974944,0.66860001,97488.0,97468.0,0.39]
[1732286974945,0.23305536,97480.0,97468.0,0.39]
[1732286975535,0.051262,97474.0,97468.0,0.39]
[1732286975937,0.05134782,97488.0,97468.0,0.7508]
[1732286976155,0.0428,97496.0,97478.0,0.3608]
[1732286976337,0.051259,97480.0,97478.0,0.7508]
[1732286976540,0.051259,97480.0,97478.0,0.39]
[1732286976849,0.051254,97490.0,97478.0,0.39]
[1732286977142,0.14944,97495.0,97478.0,0.39]
[1732286977143,0.051253,97491.0,97489.0,4e-05]
[1732286977343,0.14944,97495.0,97489.0,4e-05]
[1732286977545,0.00153933,97497.0,97490.0,4e-05]
[1732286977739,0.00153933,97497.0,97494.0,4e-05]
[1732286977940,0.05278933,97497.0,97495.0,4e-05]
[1732286978142,0.05278933,97497.0,97496.0,4e-05]
[1732286978348,0.05125,97497.0,97496.0,4e-05]
[1732286978548,0.35897,97497.0,97496.0,4e-05]
[1732286978940,0.051251,97495.0,97460.0,0.3608]
[1732286979247,0.051265,97469.0,97460.0,0.7508]
[1732286979452,0.23305536,97470.0,97460.0,0.7508]
[1732286979839,0.051265,97469.0,97460.0,0.7508]
[1732286980040,0.23305536,97470.0,97460.0,0.7508]
[1732286980751,0.051264,97470.0,97469.0,4e-05]
[1732286980947,0.14948,97480.0,97469.0,4e-05]
[1732286981156,0.14948,97480.0,97469.0,0.36084]
[1732286981451,0.051259,97480.0,97479.0,4e-05]
[1732286981650,0.14948,97491.0,97479.0,0.39004]
[1732286981845,0.051258,97481.0,97479.0,0.39004]
[1732286983950,0.719816,97485.0,97484.0,4e-05]
[1732286984549,0.359016,97485.0,97484.0,4e-05]
[1732286985453,0.719816,97485.0,97484.0,4e-05]
[1732286985647,0.359016,97485.0,97484.0,4e-05]
[1732286985847,0.359016,97485.0,97450.0,0.0052]
[1732286985848,0.051262,97475.0,97450.0,0.0052]
[1732286986054,0.15150474,97460.0,97450.0,0.39]
[1732286986250,0.05143401,97451.0,97450.0,0.39]
[1732286986562,0.05143401,97451.0,97449.0,0.0015392]
[1732286986563,0.00016001,97451.0,97449.0,0.0015392]
[1732286986853,0.051275,97450.0,97449.0,0.0015392]
[1732286987547,0.05143501,97450.0,97449.0,0.0015392]
[1732286987755,0.00016001,97450.0,97449.0,0.0015392]
[1732286987953,0.00016001,97450.0,97449.0,0.4428142]
[1732286988753,0.0024,97468.0,97450.0,0.051274]
[1732286988954,0.05073558,97474.0,97467.0,0.3608]
[1732286988955,0.0015398,97471.0,97467.0,0.3608]
[1732286989154,0.0015398,97471.0,97467.0,0.802106]
[1732286989352,0.0015398,97471.0,97467.0,0.75084]
[1732286989654,0.0015398,97471.0,97468.0,0.051265]
[1732286989862,0.0015398,97471.0,97467.0,0.75084]
[1732286990356,0.051305,97468.0,97467.0,0.39004]
[1732286990548,0.412105,97468.0,97467.0,0.39004]
[1732286990754,0.051305,97468.0,97467.0,0.39004]
[1732286991058,0.051305,97468.0,97449.0,0.0015392]
[1732286991059,0.051274,97452.0,97450.0,0.00960736]
[1732286991255,0.15612,97464.0,97450.0,0.00960736]
[1732286991750,0.15612,97464.0,97449.0,0.3915392]
[1732286991954,4e-05,97451.0,97449.0,0.3915392]
[1732286992151,4e-05,97451.0,97450.0,0.051275]
[1732286992652,4e-05,97451.0,97450.0,0.719915]
[1732286992852,0.0024,97468.0,97462.0,0.051268]
[1732286993056,0.0111398,97471.0,97462.0,0.39]